bitfinex/quotes_BTCUSD_20251124
["timestamp","ask_amount","ask_price","bid_price","bid_amount"]
[1763945569644,2.34447421,87230.0,87229.0,0.00407386]
[1763945569846,0.34447421,87230.0,87229.0,0.00407386]
[1763945570209,2.36714421,87230.0,87229.0,0.00407386]
[1763945570412,2.38981421,87230.0,87229.0,0.00407386]
[1763945571344,2.38981421,87230.0,87229.0,0.00307386]
[1763945571589,2.36714421,87230.0,87229.0,0.00307386]
[1763945572414,2.34447421,87230.0,87229.0,0.00307386]
[1763945572637,2.34447421,87230.0,87229.0,0.01285129]
[1763945572837,0.34447421,87230.0,87229.0,0.01285129]
[1763945573451,0.34447421,87230.0,87229.0,0.08445129]
[1763945573664,0.02147421,87230.0,87229.0,0.08445129]
[1763945573984,0.02147421,87230.0,87229.0,0.08545129]
[1763945574189,0.02147421,87230.0,87229.0,0.04254129]
[1763945574389,0.02147421,87230.0,87229.0,0.01385129]
[1763945574829,0.02147421,87230.0,87229.0,0.01285129]
[1763945575031,0.02147421,87230.0,87229.0,0.01385129]
[1763945575406,0.02147421,87230.0,87229.0,0.04254129]
[1763945575611,0.01487749,87237.0,87236.0,0.00977743]
[1763945575765,0.02145741,87237.0,87236.0,0.03846743]
[1763945575949,0.02145741,87237.0,87236.0,0.08137743]
[1763945576160,0.03660799,87237.0,87236.0,0.08137743]
[1763945576357,0.03660799,87237.0,87236.0,0.00977743]
[1763945577243,0.03660799,87237.0,87236.0,0.01077743]
[1763945577897,2.62947799,87237.0,87236.0,0.001]
[1763945578731,2.40494799,87237.0,87236.0,0.001]
[1763945579334,2.35960799,87237.0,87236.0,0.001]
[1763945579556,2.35960799,87237.0,87236.0,0.01077743]
[1763945579557,0.35960799,87237.0,87236.0,0.01077743]
[1763945579767,0.35960799,87237.0,87236.0,0.00977743]
[1763945579955,0.34445741,87237.0,87236.0,0.03846743]
[1763945580397,0.34445741,87237.0,87217.0,0.02145]
[1763945580398,2.323,87235.0,87217.0,0.02145]
[1763945580597,0.34445741,87234.0,87229.0,0.00977743]
[1763945580823,0.02145741,87233.0,87229.0,0.00977743]
[1763945581038,0.02145741,87232.0,87229.0,0.00977743]
[1763945581231,0.16228388,87234.0,87229.0,0.00977743]
[1763945581442,0.01048,87236.0,87227.0,0.00977743]
[1763945581660,2.0,87218.0,87214.0,0.00977743]
[1763945581781,2.0,87218.0,87211.0,0.00039575]
[1763945581782,0.0206,87212.0,87211.0,0.00039575]
[1763945581990,2.0206,87212.0,87211.0,0.00039575]
[1763945582443,2.0,87214.0,87211.0,0.00039575]
[1763945582854,2.0,87214.0,87213.0,0.00357637]
[1763945583285,2.3436,87214.0,87213.0,0.00357637]
[1763945583481,2.3642,87214.0,87213.0,0.00357637]
[1763945584265,2.323,87214.0,87213.0,0.00357637]
[1763945584466,0.01048,87236.0,87213.0,0.07004637]
[1763945584697,2.0,87235.0,87225.0,0.00977743]
[1763945584899,2.0,87234.0,87225.0,0.00977743]
[1763945585440,2.0,87234.0,87141.0,0.01926]
[1763945585441,0.323,87168.0,87141.0,0.01926]
[1763945585645,0.323,87155.0,87149.0,0.01]
[1763945586249,0.323,87155.0,87143.0,0.01]
[1763945586454,0.0114742,87152.0,87143.0,0.01]
[1763945586655,0.01043,87156.0,87119.0,0.01926]
[1763945586656,0.323,87140.0,87135.0,0.01]
[1763945586828,0.323,87140.0,87130.0,0.01926]
[1763945586829,0.80963891,87140.0,87131.0,0.01]
[1763945587037,2.0,87149.0,87138.0,0.01]
[1763945587273,2.0,87149.0,87130.0,0.01926]
[1763945587274,2.0,87149.0,87143.0,0.01]
[1763945587629,2.0,87147.0,87130.0,0.01926]
[1763945587824,0.48663891,87140.0,87135.0,0.01]
[1763945588279,0.48663891,87140.0,87130.0,0.01933648]
[1763945588597,0.48663891,87140.0,87135.0,0.01]
[1763945588746,0.49811469,87140.0,87135.0,0.01]
[1763945588949,0.323,87139.0,87135.0,0.01]
[1763945589979,0.323,87139.0,87133.0,0.01]
[1763945590176,0.01147604,87138.0,87135.0,0.001]
[1763945590559,0.33447591,87139.0,87135.0,0.001]
[1763945590851,2.83343,87136.0,87135.0,0.001]
[1763945591063,0.323,87133.0,87130.0,7.648e-05]
[1763945591228,0.48663891,87140.0,87130.0,7.648e-05]
[1763945591229,0.323,87137.0,87135.0,0.001]
[1763945591442,2.0,87146.0,87142.0,0.01]
[1763945591639,0.323,87143.0,87142.0,0.01]
[1763945591814,2.323,87143.0,87142.0,0.01]
[1763945592594,0.48663891,87160.0,87142.0,0.02758]
[1763945592811,2.0,87158.0,87155.0,0.00539951]
[1763945593024,2.0,87157.0,87156.0,0.01]
[1763945593890,0.00011804,87158.0,87156.0,0.03758]
[1763945594097,0.00011804,87158.0,87152.0,0.01679]
[1763945594098,0.00011804,87158.0,87157.0,0.03758]
[1763945596233,0.00011804,87158.0,87157.0,0.07116]
[1763945597180,0.00011804,87158.0,87157.0,0.07216]
[1763945598830,0.00011804,87158.0,87157.0,0.03858]
[1763945599155,0.00011804,87158.0,87157.0,0.07216]
[1763945600126,0.00011804,87158.0,87157.0,0.03858]
[1763945601058,0.00011804,87158.0,87157.0,0.011]
[1763945602091,0.00011804,87158.0,87157.0,0.01]
[1763945605124,0.02733804,87158.0,87155.0,0.01]
[1763945605325,0.02021,87153.0,87151.0,0.01]
[1763945605790,0.02021,87153.0,87152.0,0.00549388]
[1763945606197,0.08923,87153.0,87152.0,0.00549388]
[1763945606405,2.41223,87153.0,87152.0,0.00549388]
[1763945607098,2.41223,87153.0,87152.0,0.00649388]
[1763945608269,2.41223,87153.0,87152.0,0.00549388]
[1763945608676,2.41323,87153.0,87152.0,0.00549388]
[1763945608879,2.41223,87153.0,87152.0,0.00549388]
[1763945609081,2.52745131,87153.0,87152.0,0.00549388]
[1763945609900,2.41223,87153.0,87152.0,0.00549388]
[1763945611087,2.64171148,87153.0,87152.0,0.00549388]
[1763945611867,2.66311562,87153.0,87152.0,0.00549388]
[1763945612343,2.64171148,87153.0,87152.0,0.00549388]
[1763945612565,2.66312149,87153.0,87152.0,0.00549388]
[1763945613004,0.00765661,87100.0,87085.0,0.2296598]
[1763945613222,0.00765661,87100.0,87099.0,0.02]
[1763945613457,0.00765661,87100.0,87099.0,0.01]
[1763945614370,0.00777452,87100.0,87099.0,0.01]
[1763945615492,0.00777452,87100.0,87099.0,0.012]
[1763945615701,0.00777452,87100.0,87099.0,0.01]
[1763945615909,0.01777451,87100.0,87099.0,0.01]
[1763945616121,0.00777452,87100.0,87099.0,0.011]
[1763945616763,0.00777452,87100.0,87099.0,0.01]
[1763945617165,0.00777452,87100.0,87099.0,0.011]
[1763945618424,0.00777452,87100.0,87099.0,0.01]
[1763945618628,0.07895452,87100.0,87099.0,0.00266654]
[1763945619474,0.07895452,87100.0,87099.0,0.00166654]
[1763945619885,0.07895452,87100.0,87099.0,0.01266654]
[1763945619886,0.03539452,87100.0,87099.0,0.01266654]
[1763945620513,0.00777452,87100.0,87099.0,0.01266654]
[1763945621113,0.03539452,87100.0,87099.0,0.01266654]
[1763945621318,0.00777452,87100.0,87099.0,0.01266654]
[1763945621909,0.07895452,87100.0,87099.0,0.01266654]
[1763945622117,0.07895452,87100.0,87099.0,0.00266654]
[1763945622349,0.00777452,87100.0,87099.0,0.00266654]
[1763945622562,0.00777452,87100.0,87099.0,0.01266654]
[1763945623846,0.03768452,87100.0,87099.0,0.01266654]
[1763945623988,0.00777452,87100.0,87099.0,0.01266654]
[1763945627474,2.02869539,87122.0,87121.0,0.01]
[1763945627662,2.0,87125.0,87122.0,0.01]
[1763945627862,2.0,87123.0,87122.0,0.01011791]
[1763945628040,2.0,87125.0,87122.0,0.01011791]
[1763945628242,2.0,87123.0,87122.0,0.01011791]
[1763945628446,2.0,87129.0,87128.0,0.01]
[1763945629416,2.33721259,87129.0,87128.0,0.01]
[1763945630783,2.323,87128.0,87122.0,0.00011791]
[1763945631006,2.323,87126.0,87125.0,0.01]
[1763945631210,0.323,87126.0,87125.0,0.01]
[1763945632361,0.323,87125.0,87124.0,0.01]
[1763945632962,0.323,87125.0,87122.0,0.00011791]
[1763945633315,0.02869473,87124.0,87123.0,0.01]
[1763945633634,0.02783814,87128.0,87123.0,0.01]
[1763945634557,0.17750302,87130.0,87123.0,0.01]
[1763945634756,2.0,87132.0,87123.0,0.01]
[1763945634962,0.01480834,87129.0,87123.0,0.01]
[1763945635558,0.01480834,87129.0,87123.0,0.00984523]
[1763945635928,0.01434612,87129.0,87128.0,0.00984523]
[1763945636162,0.01480834,87132.0,87128.0,0.00984523]
[1763945636372,2.0,87131.0,87130.0,0.00984523]
[1763945636740,0.323,87133.0,87132.0,0.00984523]
[1763945636954,0.323,87129.0,87122.0,0.00011791]
[1763945637163,0.01480834,87128.0,87126.0,0.00984523]
[1763945637383,0.323,87129.0,87122.0,0.00011791]
[1763945637384,0.323,87129.0,87127.0,0.00984523]
[1763945637607,0.01435291,87131.0,87130.0,0.00984523]
[1763945638037,0.01480834,87134.0,87132.0,0.00984523]
[1763945638245,2.33780834,87134.0,87133.0,0.00984523]
[1763945638390,2.323,87134.0,87133.0,0.00984523]
[1763945638795,0.33751653,87134.0,87133.0,0.00984523]
[1763945640023,0.33751653,87134.0,87122.0,0.00011791]
[1763945640024,0.41313653,87134.0,87122.0,0.00011791]
[1763945640288,0.323,87131.0,87130.0,0.00984523]
[1763945640603,0.323,87131.0,87127.0,0.00984523]
[1763945640729,0.02991,87123.0,87122.0,0.00011791]
[1763945640936,2.0,87118.0,87103.0,0.00984523]
[1763945641264,0.323,87112.0,87103.0,0.00984523]
[1763945641471,0.323,87112.0,87111.0,0.00984523]
[1763945641816,2.323,87112.0,87111.0,0.00984523]
[1763945641943,0.323,87112.0,87111.0,0.00984523]
[1763945642271,0.00011824,87118.0,87117.0,0.00984523]
[1763945643490,0.01492658,87118.0,87117.0,0.00984523]
[1763945644161,0.33792658,87118.0,87115.0,0.00984523]
[1763945644372,0.32311824,87118.0,87117.0,0.00984523]
[1763945644561,0.32311824,87118.0,87117.0,0.01094555]
[1763945645261,0.00011824,87118.0,87117.0,0.01094555]
[1763945645487,0.09256658,87118.0,87117.0,0.01094555]
[1763945645673,0.09256658,87118.0,87117.0,0.00110032]
[1763945645874,0.00575198,87118.0,87117.0,0.01094555]
[1763945646079,0.04426846,87118.0,87117.0,0.00110032]
[1763945646253,0.33806846,87118.0,87117.0,0.00110032]
[1763945646459,0.32495824,87118.0,87117.0,0.00110032]
[1763945646861,2.64795824,87118.0,87117.0,0.00210032]
[1763945647061,2.64795824,87118.0,87117.0,0.00110032]
[1763945647407,2.64795824,87118.0,87117.0,0.05110032]
[1763945648110,2.76317955,87118.0,87117.0,0.05110032]
[1763945648267,2.64795824,87118.0,87117.0,0.05110032]
[1763945648471,2.64895824,87118.0,87117.0,0.05110032]
[1763945648669,2.64795824,87118.0,87117.0,0.05110032]
[1763945648885,2.64795824,87118.0,87117.0,0.0173394]
[1763945649917,2.64965109,87118.0,87117.0,0.0173394]
[1763945650178,2.67338639,87118.0,87117.0,0.0173394]
[1763945650532,2.64895824,87118.0,87117.0,0.0173394]
[1763945650931,2.73360847,87118.0,87117.0,0.0173394]
[1763945651522,2.77953727,87118.0,87117.0,0.0173394]
[1763945651722,2.81652509,87118.0,87117.0,0.0173394]
[1763945652357,2.83454395,87118.0,87117.0,0.0173394]
[1763945652562,2.81652509,87118.0,87117.0,0.0173394]
[1763945652823,0.323,87100.0,87083.0,0.00984523]
[1763945652997,0.323,87089.0,87083.0,0.00984523]
[1763945653199,0.02274,87084.0,87083.0,0.00984523]
[1763945654278,0.00011815,87084.0,87083.0,0.00984523]
[1763945654714,2.40075815,87084.0,87083.0,0.00106951]
[1763945654913,0.323,87081.0,87062.0,0.00984523]
[1763945655142,0.323,87077.0,87074.0,0.00984523]
[1763945655389,0.323,87077.0,87075.0,0.00025172]
[1763945655874,0.323,87077.0,87076.0,0.00984523]
[1763945656235,0.00011815,87084.0,87083.0,0.00984523]
[1763945656622,0.07775815,87084.0,87075.0,0.00025172]
[1763945656966,0.40075815,87084.0,87077.0,0.00984523]
[1763945659873,0.03104,87078.0,87075.0,0.00025172]
[1763945660052,0.03104,87076.0,87075.0,0.00025172]
[1763945660243,0.07764,87076.0,87075.0,0.00025172]
[1763945660658,2.40064,87076.0,87075.0,0.00025172]
[1763945661158,2.64784,87076.0,87075.0,0.00025172]
[1763945664260,2.60124,87076.0,87075.0,0.00025172]
[1763945665452,2.64784,87076.0,87075.0,0.00025172]
[1763945667010,2.60124,87076.0,87075.0,0.01009695]
[1763945668494,2.5702,87076.0,87075.0,0.01009695]
[1763945668694,0.5702,87076.0,87075.0,0.01009695]
[1763945668974,0.5702,87076.0,87075.0,0.00025172]
[1763945668975,0.64784,87076.0,87075.0,0.00025172]
[1763945669385,2.64784,87076.0,87075.0,0.00025172]
[1763945671084,2.87752441,87076.0,87075.0,0.00025172]
[1763945672881,2.91372518,87076.0,87075.0,0.00025172]
[1763945673594,2.68404077,87076.0,87075.0,0.00025172]
[1763945673951,2.68504077,87076.0,87075.0,0.00025172]
[1763945674356,2.77012859,87076.0,87075.0,0.00025172]
[1763945675146,2.76912859,87076.0,87075.0,0.00025172]
[1763945675388,2.77012859,87076.0,87075.0,0.00025172]
[1763945675787,2.9020161,87076.0,87075.0,0.00025172]
[1763945676189,2.932842,87076.0,87075.0,0.00025172]
[1763945676431,2.9543214,87076.0,87075.0,0.00025172]
[1763945677130,2.83910009,87076.0,87075.0,0.00025172]
[1763945678499,0.01148685,87056.0,87050.0,0.0001]
[1763945678652,0.48913186,87051.0,87050.0,0.0001]
[1763945679025,0.53218186,87051.0,87050.0,0.0008869]
[1763945679802,0.53229994,87051.0,87050.0,0.0008869]
[1763945680151,0.53229994,87051.0,87050.0,0.0018869]
[1763945680152,0.41418808,87051.0,87050.0,0.0018869]
[1763945681287,0.41418808,87051.0,87050.0,0.0008869]
[1763945681707,2.41518808,87051.0,87050.0,0.0008869]
[1763945681895,2.42976176,87051.0,87050.0,0.0008869]
[1763945683820,2.38671176,87051.0,87050.0,0.01073213]
[1763945685095,2.42861176,87051.0,87050.0,0.0008869]
[1763945690070,2.45010631,87051.0,87050.0,0.0008869]
[1763945690861,2.47472458,87051.0,87050.0,0.0008869]
[1763945691171,2.47572458,87051.0,87050.0,0.0008869]
[1763945691311,2.45010631,87051.0,87050.0,0.0008869]
[1763945691771,2.42961176,87051.0,87050.0,0.0008869]
[1763945691990,2.45110334,87051.0,87050.0,0.0008869]
[1763945693186,2.45110449,87051.0,87050.0,0.0008869]
[1763945693938,2.45010449,87051.0,87050.0,0.0008869]
[1763945694952,2.45110449,87051.0,87050.0,0.0008869]
[1763945695161,2.45010449,87051.0,87050.0,0.0008869]
[1763945696002,2.45010449,87051.0,87050.0,0.01073213]
[1763945696202,2.45010449,87051.0,87050.0,0.0008869]
[1763945696820,2.28882249,87051.0,87050.0,0.0008869]
[1763945697798,2.26732976,87051.0,87050.0,0.0008869]
[1763945700549,2.19866976,87051.0,87050.0,0.01073213]
[1763945700829,2.01569176,87051.0,87050.0,0.01073213]
[1763945700999,0.01569176,87051.0,87050.0,0.01073213]
[1763945701219,0.01569176,87051.0,87050.0,0.03881213]
[1763945701428,0.00011808,87051.0,87050.0,0.03881213]
[1763945701624,0.00011808,87051.0,87050.0,0.07833213]
[1763945702151,0.00011808,87051.0,87050.0,0.01073213]
[1763945702353,0.02687808,87051.0,87050.0,0.01073213]
[1763945702550,0.04168642,87051.0,87050.0,0.0008869]
[1763945703156,2.08358642,87051.0,87050.0,0.0008869]
[1763945703377,2.39177808,87051.0,87050.0,0.0008869]
[1763945704163,2.41332283,87051.0,87050.0,0.0008869]
[1763945704373,2.6430732,87051.0,87050.0,0.0008869]
[1763945704587,2.8902732,87051.0,87050.0,0.0008869]
[1763945704787,2.92668251,87051.0,87050.0,0.0008869]
[1763945707252,2.92768251,87051.0,87050.0,0.0008869]
[1763945707653,2.66152283,87051.0,87050.0,0.0008869]
[1763945707836,2.66052283,87051.0,87050.0,0.0008869]
[1763945708256,2.66152283,87051.0,87050.0,0.0008869]
[1763945709566,2.63897808,87051.0,87050.0,0.0008869]
[1763945709777,2.63997808,87051.0,87050.0,0.0008869]
[1763945710636,2.31697808,87051.0,87050.0,0.0008869]
[1763945710799,2.27507808,87051.0,87050.0,0.0008869]
[1763945711109,2.27507808,87051.0,87050.0,0.01073213]
[1763945711329,2.59807808,87051.0,87050.0,0.01073213]
[1763945711550,2.64165808,87051.0,87050.0,0.0008869]
[1763945712014,2.87140845,87051.0,87050.0,0.0008869]
[1763945712623,2.87040845,87051.0,87050.0,0.0008869]
[1763945713727,2.64065808,87051.0,87050.0,0.0008869]
[1763945715794,2.64165808,87051.0,87050.0,0.0008869]
[1763945716034,2.64065808,87051.0,87050.0,0.0008869]
[1763945716485,2.68775499,87051.0,87050.0,0.0008869]
[1763945717668,2.8029763,87051.0,87050.0,0.0008869]
[1763945717889,2.70470926,87051.0,87050.0,0.0008869]
[1763945718904,2.70370926,87051.0,87050.0,0.0008869]
[1763945719106,2.70470926,87051.0,87050.0,0.0008869]
[1763945719490,2.70370926,87051.0,87050.0,0.0008869]
[1763945719692,2.70470926,87051.0,87050.0,0.0008869]
[1763945719892,2.47787995,87051.0,87050.0,0.0008869]
[1763945720089,2.50453995,87051.0,87050.0,0.0008869]
[1763945722679,2.52453995,87051.0,87050.0,0.0008869]
[1763945723393,2.50758568,87051.0,87046.0,0.02]
[1763945723630,2.50758568,87051.0,87020.0,0.0004]
[1763945723631,0.323,87023.0,87020.0,0.0004]
[1763945723805,0.5493131,87023.0,87022.0,0.00984523]
[1763945724238,0.6195531,87023.0,87022.0,0.00088173]
[1763945724861,2.39324,87023.0,87022.0,0.00127699]
[1763945725846,2.39324,87023.0,87022.0,0.00227699]
[1763945726077,2.39324,87023.0,87022.0,0.00127699]
[1763945727799,2.34966,87023.0,87022.0,0.00127699]
[1763945728003,0.323,87023.0,87022.0,0.00127699]
[1763945728213,0.323,87023.0,87022.0,0.01112222]
[1763945729061,0.6195531,87023.0,87022.0,0.00127699]
[1763945729257,2.6195531,87023.0,87022.0,0.00127699]
[1763945729466,2.5759731,87023.0,87022.0,0.00127699]
[1763945731399,2.6195531,87023.0,87022.0,0.00127699]
[1763945731600,2.6205531,87023.0,87022.0,0.00127699]
[1763945731753,2.6195531,87023.0,87022.0,0.00127699]
[1763945736211,2.6195531,87023.0,87010.0,0.0004]
[1763945736212,0.55285599,87011.0,87010.0,0.0004]
[1763945736432,0.323,87001.0,86984.0,0.01341]
[1763945736673,0.323,86999.0,86998.0,0.00984523]
[1763945736885,2.323,86999.0,86998.0,0.00984523]
[1763945737055,0.323,86999.0,86998.0,0.07756523]
[1763945737628,0.323,87007.0,86998.0,0.06772]
[1763945737827,0.323,87004.0,87003.0,0.00984523]
[1763945738032,0.323,87002.0,86999.0,0.00984523]
[1763945738233,0.323,87002.0,86994.0,0.00984523]
[1763945738647,0.323,87002.0,86998.0,0.001]
[1763945738931,0.323,87002.0,86994.0,0.00984523]
[1763945739159,0.01480834,87001.0,86994.0,0.00984523]
[1763945739333,0.01480834,87001.0,86984.0,0.01380477]
[1763945739334,0.04828,86995.0,86993.0,0.00984523]
[1763945739544,0.04828,86995.0,86990.0,0.00984523]
[1763945740183,0.04268,86994.0,86990.0,0.00984523]
[1763945740749,0.02087,87001.0,86990.0,0.00984523]
[1763945740996,0.01480834,87000.0,86990.0,0.03927]
[1763945741217,0.33780834,86999.0,86998.0,0.00984523]
[1763945741363,0.323,86999.0,86998.0,0.00984523]
[1763945741571,0.323,86999.0,86998.0,0.03829523]
[1763945742567,0.323,86999.0,86998.0,0.001]
[1763945742754,0.323,86999.0,86998.0,0.01084523]
[1763945742880,0.323,86999.0,86998.0,0.01160133]
[1763945744159,0.39309,86999.0,86998.0,0.0017561]
[1763945744332,0.35041,86999.0,86998.0,0.0017561]
[1763945744535,0.323,86999.0,86998.0,0.0017561]
[1763945744714,0.323,86999.0,86998.0,0.0007561]
[1763945744917,2.39309,86999.0,86998.0,0.0007561]
[1763945745117,2.6194031,86999.0,86998.0,0.0007561]
[1763945746377,2.6204031,86999.0,86998.0,0.0007561]
[1763945746779,2.85029079,86999.0,86998.0,0.0007561]
[1763945749457,2.87179917,86999.0,86998.0,0.0007561]
[1763945749831,2.85029079,86999.0,86998.0,0.0007561]
[1763945751106,2.87179146,86999.0,86998.0,0.0007561]
[1763945751319,2.98701277,86999.0,86998.0,0.0007561]
[1763945751540,2.98701277,86999.0,86984.0,0.00039477]
[1763945751541,2.55292469,86985.0,86984.0,0.00039477]
[1763945751732,2.92339965,86985.0,86984.0,0.00039477]
[1763945751926,2.96218965,86985.0,86984.0,0.00039477]
[1763945752130,2.9668006,86985.0,86984.0,0.00039477]
[1763945752481,2.73687591,86985.0,86984.0,0.00039477]
[1763945753968,2.9668006,86985.0,86984.0,0.00039477]
[1763945754948,2.9882897,86985.0,86984.0,0.00039477]
[1763945755580,2.7619766,86985.0,86984.0,0.00039477]
[1763945755784,2.83409685,86985.0,86984.0,0.00039477]
[1763945755987,2.83409272,86985.0,86984.0,0.00039477]
[1763945756187,2.84778825,86985.0,86984.0,0.00039477]
[1763945757213,2.88419756,86985.0,86984.0,0.00083597]
[1763945757762,0.323,86962.0,86960.0,0.0004]
[1763945757932,2.48741186,86961.0,86960.0,0.00051808]
[1763945758131,2.75619001,86961.0,86960.0,0.00051808]
[1763945758648,2.54269331,86961.0,86960.0,0.00051808]
[1763945759381,2.54269331,86961.0,86960.0,0.00127467]
[1763945759932,2.56416141,86961.0,86960.0,0.00127467]
[1763945760661,2.76653495,86961.0,86960.0,0.00127467]
[1763945760880,0.323,86951.0,86920.0,0.0002]
[1763945761237,2.323,86933.0,86920.0,0.0002]
[1763945761426,2.3693,86933.0,86920.0,0.0002]
[1763945761574,2.40809,86933.0,86920.0,0.0002]
[1763945762588,2.49463961,86933.0,86920.0,0.0002]
[1763945763000,2.19308198,86933.0,86920.0,0.0002]
[1763945763443,2.22949129,86933.0,86920.0,0.0002]
[1763945764108,2.19308198,86933.0,86920.0,0.0002]
[1763945764512,2.23009134,86922.0,86920.0,0.0002]
[1763945764720,2.27771134,86922.0,86920.0,0.0002]
[1763945764923,2.08639,86922.0,86920.0,0.0002]
[1763945765125,2.40939,86922.0,86920.0,0.0002]
[1763945765739,2.40950805,86922.0,86920.0,0.0002]
[1763945766619,2.24713462,86922.0,86920.0,0.0002]
[1763945767247,2.20836462,86922.0,86921.0,0.00258301]
[1763945767681,2.24713462,86922.0,86921.0,0.00258301]
[1763945767904,2.20836462,86922.0,86921.0,0.00258301]
[1763945768081,1.83774462,86922.0,86921.0,0.01242824]
[1763945768233,0.00011805,86922.0,86921.0,0.08065824]
[1763945770172,0.00011805,86922.0,86921.0,0.03983824]
[1763945770372,0.00011805,86922.0,86921.0,0.00258301]
[1763945770577,0.00011805,86922.0,86921.0,0.03983824]
[1763945770752,0.00011805,86922.0,86921.0,0.01242824]
[1763945771155,0.02695805,86922.0,86921.0,0.00258301]
[1763945771356,0.04176639,86922.0,86921.0,0.00258301]
[1763945771563,0.08053639,86922.0,86921.0,0.00258301]
[1763945771996,2.58053639,86922.0,86921.0,0.00258301]
[1763945772228,2.50394936,86922.0,86921.0,0.00258301]
[1763945772375,2.38872805,86922.0,86921.0,0.00258301]
[1763945772613,2.41012108,86922.0,86921.0,0.00258301]
[1763945774812,2.37135108,86922.0,86921.0,0.00258301]
[1763945775010,2.41012598,86922.0,86921.0,0.00258301]
[1763945775262,2.04835598,86922.0,86921.0,0.00258301]
[1763945775502,2.00011805,86922.0,86921.0,0.01242824]
[1763945775712,2.32311805,86922.0,86921.0,0.01242824]
[1763945776333,2.32311805,86922.0,86921.0,0.00258301]
[1763945776567,0.00011805,86922.0,86921.0,0.08065824]
[1763945778187,0.00011805,86922.0,86921.0,0.03983824]
[1763945778397,0.00011805,86922.0,86921.0,0.01242824]
[1763945779015,2.38872805,86922.0,86921.0,0.00258301]
[1763945779224,2.34995805,86922.0,86921.0,0.00258301]
[1763945779500,0.32311805,86922.0,86921.0,0.01242824]
[1763945779713,0.32311805,86922.0,86921.0,0.00258301]
[1763945780557,0.32311805,86922.0,86921.0,0.01242824]
[1763945780761,0.00011805,86922.0,86921.0,0.08065824]
[1763945782641,0.01595089,86963.0,86958.0,0.00984523]
[1763945782861,0.01817475,86959.0,86958.0,0.00984523]
[1763945783020,0.03895475,86959.0,86958.0,0.00984523]
[1763945783385,0.03895475,86959.0,86953.0,0.00984523]
[1763945783861,0.03895475,86959.0,86947.0,0.00984523]
[1763945783862,0.323,86955.0,86947.0,0.00984523]
[1763945784099,0.323,86949.0,86928.0,0.01711]
[1763945784266,0.323,86939.0,86928.0,0.01711]
[1763945784450,0.323,86939.0,86935.0,0.00984523]
[1763945784874,0.01480834,86938.0,86937.0,0.00984523]
[1763945785660,0.01480834,86941.0,86940.0,0.00984523]
[1763945786057,0.07541834,86941.0,86936.0,0.00984523]
[1763945786281,0.03877,86940.0,86928.0,0.01711]
[1763945786481,0.02684,86937.0,86929.0,0.00984523]
[1763945786657,0.03130613,86936.0,86935.0,0.00984523]
[1763945787393,0.00980834,86938.0,86935.0,0.02741]
[1763945787593,0.00980834,86938.0,86937.0,0.00984523]
[1763945787975,0.49050105,86950.0,86928.0,0.01711]
[1763945787976,0.323,86941.0,86928.0,0.01711]
[1763945788178,0.44111186,86939.0,86914.0,0.04082]
[1763945788377,0.323,86930.0,86923.0,0.00984523]
[1763945788722,0.323,86930.0,86911.0,0.01426]
[1763945788723,0.323,86930.0,86928.0,0.00984523]
[1763945789049,0.323,86930.0,86929.0,0.05436523]
[1763945789267,0.323,86930.0,86929.0,0.09518523]
[1763945789476,0.323,86953.0,86950.0,0.00984523]
[1763945789589,2.03131714,86952.0,86951.0,0.00984523]
[1763945789789,2.0215088,86952.0,86951.0,0.00984523]
[1763945790104,2.323,86952.0,86951.0,0.00984523]
[1763945790313,0.00011838,86953.0,86949.0,0.00984523]
[1763945790314,2.323,86950.0,86949.0,0.00984523]
[1763945790521,0.323,86950.0,86944.0,0.00984523]
[1763945790858,0.00980834,86949.0,86930.0,0.04082]
[1763945791058,0.00980834,86949.0,86929.0,0.01711]
[1763945791059,2.0,86948.0,86938.0,0.00984523]
[1763945791359,0.323,86943.0,86929.0,0.01711]
[1763945791574,0.323,86940.0,86936.0,0.00984523]
[1763945791782,0.323,86940.0,86929.0,0.01711]
[1763945791783,0.00980834,86939.0,86938.0,0.00984523]
[1763945791986,0.323,86947.0,86946.0,0.00984523]
[1763945792186,0.323,86941.0,86936.0,0.00984523]
[1763945792520,0.323,86935.0,86921.0,0.00135282]
[1763945792737,0.49050105,86931.0,86924.0,0.00984523]
[1763945792920,0.323,86935.0,86924.0,0.00984523]
[1763945792921,0.00980834,86930.0,86924.0,0.00984523]
[1763945793809,0.01955,86925.0,86924.0,0.00984523]
[1763945794017,0.00980834,86931.0,86926.0,0.00984523]
[1763945794224,2.50980834,86936.0,86935.0,0.00984523]
[1763945794373,2.323,86936.0,86935.0,0.00984523]
[1763945794811,0.323,86941.0,86930.0,0.01711]
[1763945795019,0.323,86941.0,86940.0,0.00984523]
[1763945795191,0.323,86941.0,86940.0,0.03564523]
[1763945795895,0.323,86954.0,86940.0,0.03564523]
[1763945796093,0.323,86950.0,86947.0,0.00984523]
[1763945796304,0.323,86948.0,86947.0,0.00984523]
[1763945796560,2.323,86948.0,86947.0,0.00984523]
[1763945796845,0.323,86946.0,86941.0,0.00984523]
[1763945797048,0.00980834,86945.0,86941.0,0.00984523]
[1763945797612,0.323,86942.0,86941.0,0.00984523]
[1763945798019,0.323,86942.0,86941.0,0.03564523]
[1763945798407,0.323,86942.0,86941.0,0.07489523]
[1763945798624,0.00011838,86954.0,86952.0,0.00984523]
[1763945798879,0.00011838,86954.0,86953.0,0.09129523]
[1763945802116,0.00011838,86954.0,86953.0,0.10129523]
[1763945802319,0.01539484,86984.0,86953.0,0.08145]
[1763945802635,0.01804554,86959.0,86958.0,0.01984523]
[1763945802853,2.01020286,86984.0,86983.0,0.02397523]
[1763945803042,2.32339452,86984.0,86983.0,0.00984523]
[1763945803333,2.34143991,86984.0,86983.0,0.00984523]
[1763945803538,2.35699001,86984.0,86983.0,0.00984523]
[1763945803685,2.35699001,86984.0,86983.0,0.03564523]
[1763945803882,2.35699001,86984.0,86983.0,0.00984523]
[1763945805815,0.323,86983.0,86973.0,0.01413]
[1763945805960,0.323,86983.0,86978.0,0.00984523]
[1763945805961,0.323,86981.0,86978.0,0.00984523]
[1763945806156,2.0,86979.0,86978.0,0.00984523]
[1763945806358,2.0,86980.0,86968.0,0.01413]
[1763945806608,0.323,86981.0,86980.0,0.03564523]
[1763945806790,0.01843991,86984.0,86983.0,0.00984523]
[1763945806988,0.01843991,86984.0,86983.0,0.03564523]
[1763945807316,0.01843991,86984.0,86983.0,0.00984523]